[Event "Azerbaijan Men-ch Final 2024"]
[Site "Baku"]
[Date "2024.04.24"]
[Round "2.1"]
[White "Babazada, Khazar"]
[Black "Rasulov, Vugar"]
[Result "0-1"]
[ECO "C77"]
[WhiteElo "2474"]
[BlackElo "2551"]
[Annotator "TA"]
[PlyCount "88"]
[EventDate "2024.04.20"]
[EventType "k.o."]
[EventCountry "AZE"]
[SourceTitle "playchess.com"]
[Source "ChessBase"]
[SourceQuality "1"]
[TimeControl "5400+30"]

{[%evp 16,88,6,0,12,10,17,7,0,0,-3,0,12,8,8,16,18,15,12,-7,12,15,4,0,16,10,17,10,7,7,15,16,11,14,26,25,36,36,33,-21,0,0,0,0,0,0,0,0,0,0,0,-168,-142,-97,-103,-237,-204,-377,-377,-382,-370,-343,-326,-1581,-318,-679,-671,-723,-708,-692,-662,-2738,-1537,-1258,-1221]} 1. e4 {[%emt 0:01:00]} e5 {[%emt 0:00:08]} 2. Nf3 {[%emt 0:00:03]} Nc6 {[%emt 0:00:06]} 3. Bb5 {[%emt 0:00:06][%cal Bf1b5,Bb5a4,Ba4b3,Bb3a2][%mdl 32]} a6 {[%emt 0:00:04]} 4. Ba4 {[%emt 0:00:02]} Nf6 {[%emt 0:00:07]} 5. O-O {[%emt 0:00:04]} Be7 {[%emt 0:00:05]} 6. d3 {[%emt 0:01:47]} b5 {[%emt 0:00:19]} 7. Bb3 {[%emt 0:00:13]} d6 {[%emt 0:00:45]} 8. a3 {[%emt 0:00:13]} O-O {[%emt 0:00:10]} 9. Nc3 {[%emt 0:00:02]} Na5 {[%emt 0:00:51]} 10. Ba2 {[%emt 0:00:14]} Be6 {[%emt 0:00:02]} 11. Nd5 {[%emt 0:11:46]} Nxd5 {[%emt 0:00:20] The position is equal.} 12. Bxd5 {[%emt 0:02:21]} Bxd5 {[%emt 0:01:08]} 13. exd5 {[%emt 0:00:05]} f5 {[%emt 0:01:42]} 14. b4 {[%emt 0:02:33]} Nb7 {[%emt 0:00:07]} 15. c4 {[%emt 0:01:20]} Bf6 {[%emt 0:01:40] [#] ...e4 is the strong threat.} 16. Bb2 {[%emt 0:01:41]} Qd7 {[%emt 0:01:24]} 17. Rc1 {[%emt 0:09:49]} bxc4 {[%emt 0:12:27]} 18. dxc4 {[%emt 0:03:21]} a5 {[%emt 0:06:55]} 19. Ra1 {[%emt 0:14:40]} Rfb8 {[%emt 0:11:23]} 20. Qc2 {[%emt 0:04:08]} g6 {[%emt 0:04:11]} 21. Bc3 {[%emt 0:02:43]} Qg7 {[%emt 0:01:35]} 22. Rfd1 {[%emt 0:02:59]} axb4 {[%emt 0:06:00]} 23. axb4 {[%emt 0:00:06]} Rxa1 {[%emt 0:00:23]} 24. Bxa1 {[%emt 0:00:05]} (24. Rxa1 $2 e4 25. Bxf6 Qxf6 $19) 24... Nd8 {[%emt 0:01:38]} 25. Qa4 {[%emt 0:01:50]} Nf7 {[%emt 0:00:02]} 26. Bc3 {[%emt 0:06:16]} Qf8 {[%emt 0:02:20]} 27. Qd7 {[%emt 0:10:26]} ({White should try} 27. Ra1 $14) 27... Rd8 {[%emt 0:02:35]} (27... Ra8 $5) 28. Qe6 {[%emt 0:03:09]} Kg7 {[%emt 0:01:10]} 29. Ra1 {[%emt 0:00:25]} Ra8 {[%emt 0:00:53] [#] Dodges Ra7. White must now prevent ...Rxa1+.} 30. Ra5 {[%emt 0:01:58]} Qb8 {[%emt 0:00:14] ...Rxa5 would now be deadly.} 31. Nd2 {[%emt 0:00:48]} Qd8 {[%emt 0:01:04] Prevents Qd7. And now ...Rxa5 would win.} 32. f4 {[%emt 0:01:32]} Qb8 {[%emt 0:01:27]} 33. fxe5 $2 {[%emt 0:02:14]} (33. Kf1 $11 {and White has nothing to worry.}) 33... Bxe5 $19 {[%emt 0:01:05]} 34. Bxe5+ {[%emt 0:00:41]} dxe5 {[%emt 0:01:08]} 35. Rxa8 {[%emt 0:06:34] Loses the game.} (35. h4 $17 {was necessary.}) 35... Qxa8 $11 {[%emt 0:00:07][%mdl 4096] Endgame. KQN-KQN} 36. Qe7 $2 {[%emt 0:01:53]} (36. Kf2 Qa7+ 37. c5) 36... Qa1+ $19 {[%emt 0:02:02]} 37. Kf2 {[%emt 0:00:02]} Qd1 {[%emt 0:02:17]} 38. Ke3 {[%emt 0:01:41]} e4 {[%emt 0:00:54]} 39. Qh4 {[%emt 0:04:03] Repels Qe1+} (39. Nxe4 fxe4 40. Qxe4 Qe1+ 41. Kd3 Qxb4 42. Kc2) 39... Qc2 $2 {[%emt 0:03:24]} (39... g5 40. Qf2 Nd6) 40. Ke2 $2 {[%emt 0:00:00]} (40. Nxe4 fxe4 41. Qxe4 Qc3+ 42. Ke2) 40... Qd3+ {[%emt 0:00:00] Black is clearly winning.} 41. Ke1 {[%emt 0:00:00]} g5 {[%emt 0:00:00] Against Qf4} 42. Qh5 {[%emt 0:00:00]} e3 {[%emt 0:00:00]} 43. Nf3 {[%emt 0:00:00][%cal Oh5f7] Hoping for Qxf7+!} Qc3+ {[%emt 0:00:00]} (43... Qxc4 $2 {loses.} 44. Qxf7+ (44. Nxg5 {leads to mate.} Qc3+ 45. Kf1 Qc1+ 46. Ke2 Qd2+ 47. Kf3 Qf2#) 44... Kxf7 45. Ne5+ (45. Nxg5+ {gets mated.} Ke7 46. Nf3 Qa2 47. h3 Qxg2 48. d6+ Kxd6 49. Kd1 Qb2 50. b5 Kd5 51. h4 Ke4 52. Ke1 Kxf3 53. h5 Qe2#) 45... Ke7 46. Nxc4 $18) 44. Ke2 {[%emt 0:00:00]} f4 {[%emt 0:00:00] Weighted Error Value: White=0.69/Black=0.30.  Loses game:     	White=1     	---        Mistake:       	White=5     	Black=1      OK:         	White=13    	Black=10     Best:        	White=1     	Black=1} 0-1

[Event "Azerbaijan Men-ch Final 2024"]
[Site "Baku"]
[Date "2024.04.25"]
[Round "2.2"]
[White "Suleymanli, Aydin"]
[Black "Muradli, Mahammad"]
[Result "1-0"]
[ECO "B90"]
[WhiteElo "2607"]
[BlackElo "2555"]
[Annotator "TA"]
[PlyCount "81"]
[EventDate "2024.04.20"]
[EventType "k.o."]
[EventCountry "AZE"]
[SourceTitle "playchess.com"]
[Source "ChessBase"]
[SourceQuality "1"]
[TimeControl "5400+30"]

{[%evp 13,81,0,0,0,0,0,0,0,0,0,0,0,0,0,0,0,0,0,0,0,17,0,0,-20,0,0,0,0,0,0,0,0,0,0,0,0,0,-47,0,0,75,85,94,88,153,156,154,164,148,148,156,142,350,348,349,328,771,402,433,426,441,360,566,463,583,560,29937,12851,29984,29985]} 1. e4 {[%emt 0:01:45] Ter Sahakyan,Samvel} c5 {[%emt 0:04:58]} 2. Nf3 {[%emt 0:00:04][%cal Bg1f3,Bf3d4,Bd4e2,Be2f4][%mdl 32]} d6 {[%emt 0:00:07]} 3. d4 {[%emt 0:00:11]} cxd4 {[%emt 0:00:06]} 4. Nxd4 {[%emt 0:00:04]} Nf6 {[%emt 0:00:10]} 5. Nc3 {[%emt 0:00:03]} a6 {[%emt 0:00:11]} 6. Bd3 {[%emt 0:00:21]} e5 {[%emt 0:01:11]} 7. Nde2 {[%emt 0:00:06]} Be6 {[%emt 0:00:43]} 8. f4 {[%emt 0:00:05] B90: Sicilian Najdorf: Unusual White 6th moves, 6 Be3 Ng4 and 6 Be3 e5.} Be7 {[%emt 0:00:40]} 9. O-O {[%emt 0:00:45]} exf4 {[%emt 0:00:16] 9...exf4 is better than 9...0-0.} 10. Nxf4 {[%emt 0:00:14]} Nc6 {[%emt 0:00:05]} 11. Kh1 $5 {[%emt 0:02:14][%mdl 4] An interesting side line.} Ne5 {[%emt 0:02:52]} 12. b3 {[%emt 0:07:21]} O-O {[%emt 0:02:28]} 13. Bb2 {[%emt 0:00:08]} Re8 {[%emt 0:04:44]} 14. Qe1 {[%emt 0:25:21]} g6 {[%emt 0:10:25]} 15. Rd1 {[%emt 0:01:40]} Bf8 {[%emt 0:03:07]} 16. Nxe6 $146 {[%emt 0:10:59]} ({Predecessor:} 16. h3 Rc8 17. Qf2 Bg7 18. Na4 Qe7 19. Nb6 Rc6 20. Bd4 Qc7 21. Qg1 Qe7 22. c4 {1-0 Sindarov,J (2629)-Ter Sahakyan,S (2625) Olympiad-44 Chennai 2022 (9.3)}) 16... fxe6 {[%emt 0:03:52]} (16... Rxe6 $5 17. Qf2 Bg7 $11) 17. Ne2 {[%emt 0:12:54] Bxe5 would now be deadly.} Nfd7 {[%emt 0:07:38]} 18. Bc4 {[%emt 0:01:16]} Qb6 {[%emt 0:27:50]} 19. Qc3 {[%emt 0:06:02]} Bg7 {[%emt 0:01:57]} 20. Qh3 {[%emt 0:08:01]} Nc5 {[%emt 0:06:43]} 21. Nf4 {[%emt 0:18:38]} Nxc4 {[%emt 0:01:25]} 22. Bxg7 {[%emt 0:00:01]} Kxg7 {[%emt 0:00:08]} 23. bxc4 {[%emt 0:00:07][%cal Oe4e5]} Qc7 {[%emt 0:02:18][%cal Og7g8]} 24. Qg4 {[%emt 0:01:52]} Qe7 {[%emt 0:04:49][%cal Oe8f8]} 25. Rf3 {[%emt 0:01:40]} (25. Nh5+ Kh8 26. Nf4 (26. Nf6 Rf8 $17) 26... Rac8) (25. e5 $11 {should be considered.} dxe5 26. Nh5+ Kh8 27. Qe2 (27. Nf6 Rf8 $17)) 25... Rf8 {[%emt 0:02:12]} (25... Nd7 $1 $15 26. c5 dxc5 27. Qxe6 (27. Nxe6+ $2 Kg8 $17) 27... Ne5) 26. Rdf1 $11 {[%emt 0:00:27]} Rae8 {[%emt 0:07:55]} (26... Kh8 $11 {remains equal.}) 27. Nh5+ $16 {[%emt 0:00:25]} Kh8 {[%emt 0:00:03]} 28. Nf6 {[%emt 0:00:10]} Rc8 {[%emt 0:00:57] [#]} (28... Rd8 $142) 29. Qxg6 $3 {[%emt 0:00:34][%mdl 512]} Nd7 {[%emt 0:02:00]} (29... hxg6 30. Rh3+ Kg7 31. Rh7#) 30. Qh6 $40 {[%emt 0:00:25][%mdl 128] White wants a kill.} Nxf6 {[%emt 0:02:38]} 31. Rxf6 {[%emt 0:00:01]} Rxf6 {[%emt 0:00:10]} 32. Rxf6 $18 {[%emt 0:00:06][%mdl 4096] Endgame. KQR-KQR} (32. Qxf6+ Qxf6 33. Rxf6 Rxc4 34. Rxe6 Rxc2 $11) 32... d5 $2 {[%emt 0:01:21]} (32... e5 $16 33. Kg1 (33. Rxd6 Qf8 $16) 33... Qg7) 33. cxd5 {[%emt 0:01:15]} (33. Rxe6 Qf8 34. Qc1 (34. cxd5 $2 Qf1#) 34... dxc4 $16) 33... exd5 {[%emt 0:00:01]} 34. e5 $1 {[%emt 0:00:14] And now e6 would win.} d4 $2 {[%emt 0:00:59]} (34... Rg8 35. Qf4 Qg7) 35. h3 {[%emt 0:00:47]} Rg8 {[%emt 0:00:29]} 36. Qf4 {[%emt 0:01:34][%cal Oe5e6] Black must now prevent e6!} Qg7 {[%emt 0:00:31]} 37. g4 {[%emt 0:00:30][%cal Oe5e6] e6! is the strong threat.} (37. Qxd4 $2 Qxg2#) 37... Qc7 {[%emt 0:00:29]} (37... Re8 {might work better.} 38. e6 (38. Qxd4 Kg8 $18) 38... Kg8) 38. Qxd4 {[%emt 0:00:32]} Rd8 {[%emt 0:00:31] Wards off e6} 39. Rd6 {[%emt 0:00:17]} Rf8 {[%emt 0:00:01]} 40. e6+ {[%emt 0:00:00]} Kg8 {[%emt 0:00:00]} 41. Rd7 {[%emt 0:00:00]} 1-0

[Event "Azerbaijan Men-ch Final 2024"]
[Site "Baku"]
[Date "2024.04.25"]
[Round "2.2"]
[White "Rasulov, Vugar"]
[Black "Babazada, Khazar"]
[Result "1-0"]
[ECO "E67"]
[WhiteElo "2551"]
[BlackElo "2474"]
[Annotator "TA"]
[PlyCount "63"]
[EventDate "2024.04.20"]
[EventType "k.o."]
[EventCountry "AZE"]
[SourceTitle "playchess.com"]
[Source "ChessBase"]
[SourceQuality "1"]
[TimeControl "5400+30"]

{[%evp 20,63,38,23,62,43,64,50,67,22,73,72,92,80,92,56,48,24,18,20,102,99,107,122,109,125,116,126,117,102,100,102,90,102,189,231,207,199,236,144,558,570,609,599,591,596]} 1. d4 {[%emt 0:00:04]} Nf6 {[%emt 0:08:52]} 2. c4 {[%emt 0:00:13]} g6 {[%emt 0:00:04]} 3. g3 {[%emt 0:00:50]} Bg7 {[%emt 0:00:43]} 4. Bg2 {[%emt 0:00:07]} d6 {[%emt 0:00:04]} 5. Nf3 {[%emt 0:00:25]} O-O {[%emt 0:00:11]} 6. O-O {[%emt 0:00:06]} Nbd7 {[%emt 0:00:43]} 7. Qc2 {[%emt 0:00:23]} e5 {[%emt 0:01:54]} 8. Rd1 {[%emt 0:00:11]} exd4 {[%emt 0:06:52]} 9. Nxd4 {[%emt 0:00:21]} Re8 {[%emt 0:00:05]} 10. Nc3 {[%emt 0:00:24]} c6 {[%emt 0:02:00]} 11. b3 {[%emt 0:08:47]} Qb6 {[%emt 0:08:34]} 12. h3 {[%emt 0:04:24]} Nc5 {[%emt 0:08:43]} 13. Rb1 {[%emt 0:02:36]} a5 {[%emt 0:17:25] White is slightly better.} 14. a3 {[%emt 0:00:40]} Ncd7 {[%emt 0:04:48]} (14... Qc7 $11 {remains equal.}) 15. e4 $16 {[%emt 1:18:29]} h5 {[%emt 0:01:51]} 16. Be3 {[%emt 0:00:00][%cal Od4b5] Ndb5! is the strong threat.} Qc7 {[%emt 0:03:16]} 17. f4 {[%emt 0:00:00] White is more active.} Nc5 {[%emt 0:02:11][%cal Oc5e4,Bd7c5,Bc5a6,Ba6b8][%mdl 32]} 18. Bf2 {[%emt 0:00:00]} (18. Re1 $5) 18... Qe7 {[%emt 0:02:41]} 19. Re1 {[%emt 0:00:00]} Nfd7 {[%emt 0:01:09]} (19... h4 $1 $11 {keeps the balance.} 20. g4 (20. gxh4 Nh5 $11) 20... Bxg4) 20. b4 {[%emt 0:00:00]} axb4 {[%emt 0:01:44]} 21. axb4 {[%emt 0:00:00]} Na6 {[%emt 0:02:27]} 22. b5 {[%emt 0:00:00]} Nab8 {[%emt 0:00:00]} 23. Qd2 {[%emt 0:00:00]} Ra3 {[%emt 0:00:40]} 24. bxc6 {[%emt 0:00:00]} bxc6 {[%emt 0:00:10] [#]} 25. e5 $1 {[%emt 0:00:00]} dxe5 {[%emt 0:00:38]} 26. fxe5 {[%emt 0:00:00] aiming for e6.} (26. Nxc6 $6 Nxc6 27. Bxc6 Qe6 $11) 26... Qf8 {[%emt 0:04:33]} (26... Rf8 $16 {is a better defense.}) 27. e6 $18 {[%emt 0:00:00]} (27. Bxc6 Nxc6 (27... Rxe5 28. Be4 $16) 28. Nxc6 Re6 $17 (28... Nxe5 29. Nxe5 Rxe5 30. Rxe5 $17)) 27... fxe6 {[%emt 0:00:15]} 28. Ne4 {[%emt 0:00:00][%cal Bc3e4,Be4g5,Bg5e4,Be4d6][%mdl 32]} Ba6 {[%emt 0:02:36]} 29. Ng5 $36 {[%emt 0:00:00][%mdl 3072] White has strong compensation. White has strong initiative.} Bh6 $2 {[%emt 0:05:24][%mdl 8192] [#]} (29... Bxd4 $16 {is more resistant.} 30. Qxd4 e5) 30. Qc2 $1 {[%emt 0:00:00] White is clearly winning.} Qf6 {[%emt 0:00:48]} (30... Qg7 31. Ndxe6) 31. Ne4 {[%emt 0:00:00]} ({Not} 31. Rxe6 Rxe6 32. Ngxe6 Kh7 $16 (32... c5 $2 33. Nb3 $18)) 31... Qg7 {[%emt 0:04:31]} 32. Nd6 {[%emt 0:00:00][%csl LRc6,LRe6,LRe8] Weighted Error Value: White=0.13 (very precise) /Black=0.41.  Loses game:     	---       	Black=1      Mistake:       	---       	Black=3      Inaccurate:     	White=3     	---        OK:         	White=7     	Black=7      Best:        	White=2     	Black=2} 1-0